fUST/lending_fUST_20250602
["ID","MTS","AMOUNT","RATE_DAILY","PERIOD"]
[363678853,1748811045605,-20199.68199688,0.00022998,3]
[363678854,1748811045614,-84411.61416257,0.00022998,2]
[363678900,1748811046034,-5000.0,0.00016274,2]
[363678902,1748811046044,-430.0,0.00016438,2]
[363678904,1748811046054,-633.83,0.00016712,2]
[363678906,1748811046063,-430.0,0.00016712,2]
[363678908,1748811046073,-633.83,0.00016986,2]
[363678910,1748811046082,-430.0,0.00016986,2]
[363678912,1748811046092,-633.83,0.0001726,2]
[363678914,1748811046101,-430.0,0.0001726,2]
[363678916,1748811046110,-633.83,0.00017534,2]
[363678918,1748811046120,-430.0,0.00017534,2]
[363678920,1748811046130,-633.83,0.00017808,2]
[363678922,1748811046139,-430.0,0.00017808,2]
[363678924,1748811046150,-633.83,0.00018082,2]
[363678926,1748811046167,-430.0,0.00018082,2]
[363678928,1748811046176,-633.83,0.00018356,2]
[363678930,1748811046186,-430.0,0.00018356,2]
[363678932,1748811046196,-633.83,0.0001863,2]
[363678934,1748811046205,-430.0,0.0001863,2]
[363678936,1748811046214,-633.83,0.00018904,2]
[363678938,1748811046223,-430.0,0.00018904,2]
[363678940,1748811046234,-633.83,0.00019178,2]
[363678942,1748811046243,-430.0,0.00019178,2]
[363678944,1748811046252,-633.83,0.00019452,2]
[363678946,1748811046262,-430.0,0.00019452,2]
[363678948,1748811046271,-633.83,0.00019726,2]
[363678950,1748811046280,-430.0,0.00019726,2]
[363678952,1748811046291,-633.83,0.0002,2]
[363678954,1748811046301,-496.3,0.0002,2]
[363678956,1748811046310,-633.83,0.00020273,2]
[363678958,1748811046320,-633.83,0.00020547,2]
[363678960,1748811046329,-633.83,0.00020821,2]
[363678962,1748811046339,-633.83,0.00021095,2]
[363678964,1748811046349,-2109.92,0.00022931,2]
[363678966,1748811046359,-2109.92,0.00022931,2]
[363678968,1748811046369,-2109.92,0.00022931,2]
[363678970,1748811046378,-2109.92,0.00022931,2]
[363678972,1748811046388,-2109.92,0.00022931,2]
[363678974,1748811046397,-2109.92,0.00022931,2]
[363678976,1748811046406,-2109.92,0.00022931,2]
[363678978,1748811046416,-2109.92,0.00022931,2]
[363678980,1748811046425,-2109.92,0.00022931,2]
[363678982,1748811046434,-2109.92,0.00022931,2]
[363678984,1748811046444,-2109.92,0.00022931,2]
[363678986,1748811046454,-2109.92,0.00022931,2]
[363678988,1748811046463,-2109.92,0.00022931,2]
[363678990,1748811046473,-2109.92,0.00022931,2]
[363678992,1748811046483,-2109.92,0.00022931,2]
[363678994,1748811046492,-2109.92,0.00022931,2]
[363678996,1748811046503,-2109.92,0.00022931,2]
[363678999,1748811046512,-2110.02376269,0.00022931,2]
[363679000,1748811046522,-59651.76360027,0.00022998,2]
[363679002,1748811046531,-151.0,0.00022999,7]
[363679005,1748811046541,-151.0,0.00022999,7]
[363679007,1748811046550,-151.0,0.00022999,7]
[363679009,1748811046560,-151.0,0.00022999,7]
[363679011,1748811046569,-151.0,0.00022999,7]
[363679013,1748811046579,-255.811957,0.00022999,2]
[363679015,1748811046589,-255.811957,0.00022999,2]
[363679017,1748811046599,-151.0,0.00022999,7]
[363679019,1748811046608,-151.0,0.00022999,7]
[363679021,1748811046617,-151.0,0.00022999,7]
[363679023,1748811046627,-151.0,0.00022999,7]
[363679025,1748811046636,-151.0,0.00023,7]
[363679027,1748811046645,-89046.53872303,0.00023,7]
[363679029,1748811046657,-33276.48127697,0.00023,7]
[363679032,1748811046667,-151.0,0.00023,7]
[363679034,1748811046675,-28552.03782323,0.00023,2]
[363679036,1748811046688,-6889.4762018,0.00023,2]
[363679038,1748811046700,-151.0,0.00023,7]
[363679040,1748811046710,-151.0,0.00023,7]
[363679042,1748811046719,-2407.2472982,0.00023,20]
[363679047,1748811046757,-633.83,0.00021369,2]
[363679049,1748811046767,-96.82721961,0.00021643,2]
[363680383,1748811708925,240.168816,0.00013699,2]
[363680386,1748811801221,5000.0,0.0001552,2]
[363680387,1748811816499,5000.0,0.0001552,2]
[363680388,1748811831811,5000.0,0.0001552,2]
[363680390,1748811847338,5000.0,0.0001552,2]
[363680391,1748811863043,5000.0,0.0001552,2]
[363680392,1748811878364,5000.0,0.0001552,2]
[363680393,1748811894485,5000.0,0.0001552,2]
[363680394,1748811910826,5000.0,0.0001552,2]
[363680395,1748811926516,5000.0,0.0001552,2]
[363680396,1748811941590,5000.0,0.0001552,2]
[363680397,1748811957362,5000.0,0.0001552,2]
[363680399,1748811973158,5000.0,0.0001552,2]
[363680400,1748811988333,5000.0,0.0001552,2]
[363680401,1748812004045,5000.0,0.0001552,2]
[363680402,1748812020007,5000.0,0.0001552,2]
[363680403,1748812035144,-1200.0,0.00015603,2]
[363680404,1748812035167,-300.0,0.00015603,2]
[363680405,1748812035190,-300.0,0.00015603,2]
[363680406,1748812035211,-10000.0,0.00015604,2]
[363680407,1748812035233,-1135.8653316,0.00015793,2]
[363680408,1748812035254,-1248.9526299,0.00016431,2]
[363680409,1748812035686,5000.0,0.0001552,2]
[363680410,1748812155242,-300.0,0.0001578,2]
[363680411,1748812155263,-6227.91210015,0.00015781,2]
[363680412,1748812170704,-195.47736732,0.00015781,2]
[363680699,1748812237839,5000.0,0.0001552,2]
[363680703,1748812238601,-300.0,0.0001578,2]
[363680704,1748812238611,-1200.0,0.0001578,2]
[363680705,1748812238622,-777.415,0.00015781,2]
[363680706,1748812238634,-881.22863858,0.00015781,2]
[363680707,1748812238646,-954.20543836,0.00015781,2]
[363680708,1748812238657,-1998.49179696,0.00015781,2]
[363680709,1748812238765,-13865.26965863,0.00015781,2]
[363680710,1748812238775,-569.282958,0.00016005,2]
[363680711,1748812238787,-164.6850963,0.00016334,2]
[363680712,1748812238798,-500.0,0.00016433,2]
[363680713,1748812238808,-500.0,0.00016433,2]
[363680714,1748812238818,-481.64783035,0.00016433,2]
[363680715,1748812238828,-500.0,0.00016433,2]
[363680716,1748812238838,-364.49258356,0.00016433,2]
[363680717,1748812238848,-500.0,0.00016433,2]
[363680718,1748812238859,-500.0,0.00016433,2]
[363680719,1748812238869,-500.0,0.00016433,2]
[363680720,1748812238879,-500.0,0.00016433,2]
[363680721,1748812238889,-500.0,0.00016433,2]
[363680722,1748812238899,-500.0,0.00016433,2]
[363680723,1748812238909,-500.0,0.00016433,2]
[363680724,1748812238919,-203.60383077,0.00016433,2]
[363680725,1748812238929,-500.0,0.00016433,2]
[363680726,1748812238939,-500.0,0.00016433,2]
[363680727,1748812238949,-500.0,0.00016433,2]
[363680728,1748812238959,-500.0,0.00016433,2]
[363680729,1748812238968,-500.0,0.00016433,2]
[363680730,1748812238978,-500.0,0.00016433,2]
[363680731,1748812238987,-500.0,0.00016433,2]
[363680732,1748812238997,-500.0,0.00016433,2]
[363680733,1748812239007,-500.0,0.00016433,2]
[363680734,1748812239016,-500.0,0.00016433,2]
[363680735,1748812239026,-500.0,0.00016433,2]
[363680736,1748812239036,-500.0,0.00016433,2]
[363680737,1748812239046,-500.0,0.00016433,2]
[363680738,1748812239056,-500.0,0.00016433,2]
[363680739,1748812239067,-430.0,0.00016438,2]
[363680740,1748812239077,-430.0,0.00016438,2]
[363680741,1748812239087,-430.0,0.00016438,2]
[363680742,1748812239096,-430.0,0.00016438,2]
[363680743,1748812239107,-512.26,0.00016438,2]
[363680744,1748812239117,-430.0,0.00016438,2]
[363680745,1748812239127,-430.0,0.00016438,2]
[363680746,1748812239137,-658.01,0.00016438,2]
[363680747,1748812239147,-467.73,0.00016438,2]
[363680748,1748812239156,-595.77,0.00016438,2]
[363680749,1748812239166,-430.0,0.00016438,2]
[363680750,1748812239176,-430.0,0.00016438,2]
[363680751,1748812239186,-430.0,0.00016438,2]
[363680752,1748812239196,-1999.14779738,0.00016438,2]
[363680753,1748812239206,-430.0,0.00016711,2]
[363680754,1748812239215,-430.0,0.00016711,2]
[363680755,1748812239225,-430.0,0.00016711,2]
[363680756,1748812239235,-430.0,0.00016711,2]
[363680757,1748812239244,-430.0,0.00016711,2]
[363680758,1748812239254,-430.0,0.00016711,2]
[363680759,1748812239263,-430.0,0.00016712,2]
[363680760,1748812239273,-430.0,0.00016712,2]
[363680761,1748812239283,-430.0,0.00016712,2]
[363680762,1748812239292,-512.26,0.00016712,2]
[363680763,1748812239302,-658.01,0.00016712,2]
[363680764,1748812239314,-467.73,0.00016712,2]
[363680765,1748812239324,-595.77,0.00016712,2]
[363680766,1748812239333,-430.0,0.00016712,2]
[363680767,1748812239343,-430.0,0.00016712,2]
[363680768,1748812239353,-502.34771245,0.00016767,2]
[363680769,1748812239363,-500.0,0.00016767,2]
[363680770,1748812239372,-500.0,0.00016767,2]
[363680771,1748812239382,-500.0,0.00016767,2]
[363680772,1748812239392,-1686.77159974,0.000169,2]
[363680773,1748812239403,-2229.01,0.00016984,2]
[363680774,1748812239412,-430.0,0.00016985,2]
[363680775,1748812239422,-430.0,0.00016985,2]
[363680776,1748812239432,-430.0,0.00016985,2]
[363680777,1748812239442,-430.0,0.00016985,2]
[363680778,1748812239452,-430.0,0.00016985,2]
[363680779,1748812239462,-430.0,0.00016986,2]
[363680780,1748812239472,-430.0,0.00016986,2]
[363680781,1748812239481,-430.0,0.00016986,2]
[363680782,1748812239491,-512.26,0.00016986,2]
[363680783,1748812239500,-658.01,0.00016986,2]
[363680784,1748812239510,-467.73,0.00016986,2]
[363680785,1748812239520,-595.77,0.00016986,2]
[363680786,1748812239529,-430.0,0.00016986,2]
[363680787,1748812239549,-430.0,0.00016986,2]
[363680788,1748812239559,-420.0,0.00017066,2]
[363680789,1748812239569,-1039.46262842,0.00017116,2]
[363680790,1748812239579,-1686.77159964,0.00017141,2]
[363680791,1748812239589,-500.0,0.00017183,2]
[363680792,1748812239599,-420.0,0.00017257,2]
[363680793,1748812239608,-430.0,0.00017259,2]
[363680794,1748812239619,-430.0,0.00017259,2]
[363680795,1748812239631,-430.0,0.00017259,2]
[363680796,1748812239642,-430.0,0.00017259,2]
[363680797,1748812239652,-430.0,0.0001726,2]
[363680798,1748812239662,-237.20122629,0.0001726,2]
[363680799,1748812239672,-430.0,0.0001726,2]
[363680800,1748812239682,-512.26,0.0001726,2]
[363680801,1748812239692,-658.01,0.0001726,2]
[363680802,1748812239706,-467.73,0.0001726,2]
[363680803,1748812239716,-595.77,0.0001726,2]
[363680804,1748812239726,-430.0,0.0001726,2]
[363680805,1748812239736,-430.0,0.0001726,2]
[363680806,1748812239746,-1000.0,0.00017315,2]
[363680807,1748812239756,-399.38489475,0.00017315,2]
[363680808,1748812239766,-474.0,0.00017344,2]
[363680809,1748812239778,-500.0,0.00017367,2]
[363680810,1748812239789,-490.08930835,0.00017382,2]
[363680811,1748812239801,-500.0,0.00017382,2]
[363680812,1748812239811,-500.0,0.00017382,2]
[363680813,1748812239821,-1686.77159964,0.00017383,2]
[363680814,1748812239830,-430.0,0.00017533,2]
[363680815,1748812239841,-430.0,0.00017533,2]
[363680816,1748812239852,-430.0,0.00017533,2]
[363680817,1748812239862,-430.0,0.00017534,2]
[363680818,1748812239873,-430.0,0.00017534,2]
[363680819,1748812239883,-512.26,0.00017534,2]
[363680820,1748812239893,-658.01,0.00017534,2]
[363680821,1748812239904,-467.73,0.00017534,2]
[363680822,1748812239914,-595.77,0.00017534,2]
[363680823,1748812239925,-430.0,0.00017534,2]
[363680824,1748812239936,-430.0,0.00017534,2]
[363680825,1748812239946,-1686.77159964,0.00017624,2]
[363680826,1748812239956,-430.0,0.00017807,2]
[363680827,1748812239966,-430.0,0.00017807,2]
[363680828,1748812239976,-430.0,0.00017807,2]
[363680829,1748812239986,-430.0,0.00017808,2]
[363680830,1748812239997,-512.26,0.00017808,2]
[363680831,1748812240007,-658.01,0.00017808,2]
[363680833,1748812240017,-467.73,0.00017808,2]
[363680835,1748812240027,-595.77,0.00017808,2]
[363680836,1748812240037,-430.0,0.00017808,2]
[363680837,1748812240047,-430.0,0.00017808,2]
[363680838,1748812240058,-164.68509627,0.00017823,2]
[363680839,1748812240068,-1686.77159964,0.00017866,2]
[363680840,1748812240079,-1000.0,0.0001793,2]
[363680841,1748812240090,-430.0,0.00018081,2]
[363680842,1748812240100,-430.0,0.00018081,2]
[363680844,1748812240110,-430.0,0.00018081,2]
[363680846,1748812240120,-2229.01,0.00018081,2]
[363680847,1748812240130,-430.0,0.00018082,2]
[363680848,1748812240140,-512.26,0.00018082,2]
[363680849,1748812240150,-658.01,0.00018082,2]
[363680850,1748812240160,-467.73,0.00018082,2]
[363680851,1748812240170,-595.77,0.00018082,2]
[363680852,1748812240181,-430.0,0.00018082,2]
[363680853,1748812240191,-430.0,0.00018082,2]
[363680854,1748812240202,-1686.77159964,0.00018107,2]
[363680855,1748812240212,-6285.6263692,0.00018121,2]
[363680856,1748812240222,-229.3709046,0.00018265,2]
[363680857,1748812240231,-160.0,0.00018265,2]
[363680858,1748812240241,-423.51412927,0.00018265,2]
[363680859,1748812240251,-12666.87825251,0.00018265,2]
[363680860,1748812240261,-237.11509976,0.00018344,2]
[363680861,1748812240271,-1686.77159964,0.00018348,2]
[363680862,1748812240281,-430.0,0.00018355,2]
[363680863,1748812240290,-430.0,0.00018355,2]
[363680864,1748812240300,-430.0,0.00018355,2]
[363680865,1748812240311,-430.0,0.00018356,2]
[363680866,1748812240321,-512.26,0.00018356,2]
[363680867,1748812240332,-658.01,0.00018356,2]
[363680868,1748812240342,-467.73,0.00018356,2]
[363680869,1748812240352,-595.77,0.00018356,2]
[363680870,1748812240362,-430.0,0.00018356,2]
[363680871,1748812240373,-430.0,0.00018356,2]
[363680872,1748812240384,-500.0,0.00018567,2]
[363680873,1748812240394,-500.0,0.00018567,2]
[363680874,1748812240404,-1686.77159964,0.0001859,2]
[363680875,1748812240416,-430.0,0.00018629,2]
[363680876,1748812240426,-398.34260353,0.00018629,2]
[363680878,1748812240435,-430.0,0.00018629,2]
[363680880,1748812240445,-430.0,0.0001863,2]
[363680882,1748812240455,-512.26,0.0001863,2]
[363680883,1748812240466,-658.01,0.0001863,2]
[363680900,1748812240641,-467.73,0.0001863,2]
[363680902,1748812240652,-595.77,0.0001863,2]
[363680904,1748812240662,-430.0,0.0001863,2]
[363680906,1748812240671,-430.0,0.0001863,2]
[363680908,1748812240681,-300.0,0.00018667,2]
[363680910,1748812240692,-1686.77159964,0.00018831,2]
[363680912,1748812240705,-587.0,0.00018872,2]
[363680914,1748812240715,-877.2644251,0.000189,2]
[363680916,1748812240725,-430.0,0.00018903,2]
[363680918,1748812240735,-430.0,0.00018903,2]
[363680920,1748812240744,-430.0,0.00018904,2]
[363680922,1748812240753,-512.26,0.00018904,2]
[363680923,1748812240762,-658.01,0.00018904,2]
[363680926,1748812240772,-467.73,0.00018904,2]
[363680927,1748812240782,-595.77,0.00018904,2]
[363680929,1748812240792,-430.0,0.00018904,2]
[363680932,1748812240803,-430.0,0.00018904,2]
[363680934,1748812240813,-1686.77159964,0.00019072,2]
[363680936,1748812240823,-1581.27,0.00019082,2]
[363680938,1748812240832,-636.19,0.00019158,3]
[363680940,1748812240842,-424.11,0.00019168,3]
[363680942,1748812240851,-212.05,0.00019168,3]
[363680944,1748812240861,-430.0,0.00019177,2]
[363680945,1748812240871,-283.92609104,0.00019177,2]
[363680947,1748812240881,-430.0,0.00019178,2]
[363680950,1748812240891,-430.0,0.00019178,2]
[363680951,1748812240901,-430.0,0.00019178,2]
[363680953,1748812240911,-430.0,0.00019178,2]
[363680955,1748812240921,-430.0,0.00019178,2]
[363680957,1748812240931,-430.0,0.00019178,2]
[363680959,1748812240941,-512.26,0.00019178,2]
[363680962,1748812240951,-658.01,0.00019178,2]
[363680964,1748812240961,-467.73,0.00019178,2]
[363680965,1748812240970,-595.77,0.00019178,2]
[363680967,1748812240980,-430.0,0.00019178,2]
[363680970,1748812240991,-500.0,0.00019178,2]
[363680971,1748812241001,-500.0,0.00019178,2]
[363680973,1748812241011,-500.0,0.00019178,2]
[363680975,1748812241020,-562.73371435,0.00019178,2]
[363680978,1748812241031,-500.0,0.00019178,2]
[363680980,1748812241041,-430.0,0.00019178,2]
[363680981,1748812241051,-151.0,0.00019178,2]
[363680983,1748812241060,-173.899304,0.00019178,2]
[363680985,1748812241070,-156.587,0.00019233,2]
[363680987,1748812241080,-162.380719,0.00019288,2]
[363680989,1748812241090,-164.68509627,0.00019312,2]
[363680991,1748812241099,-1686.77159964,0.00019314,2]
[363680993,1748812241110,-168.3888056,0.00019343,2]
[363680995,1748812241120,-174.61919141,0.00019398,2]
[363680997,1748812241131,-430.0,0.00019451,2]
[363680999,1748812241141,-430.0,0.00019452,2]
[363681001,1748812241150,-512.26,0.00019452,2]
[363681003,1748812241160,-658.01,0.00019452,2]
[363681005,1748812241169,-467.73,0.00019452,2]
[363681007,1748812241179,-595.77,0.00019452,2]
[363681009,1748812241189,-430.0,0.00019452,2]
[363681012,1748812241201,-430.0,0.00019452,2]
[363681014,1748812241212,-181.08010149,0.00019453,2]
[363681016,1748812241221,-187.78006525,0.00019508,2]
[363681018,1748812241231,-1686.77159964,0.00019555,2]
[363681020,1748812241240,-194.72792766,0.00019563,2]
[363681021,1748812241249,-556.26,0.0001957,3]
[363681023,1748812241259,-178.59002559,0.0001958,2]
[363681025,1748812241268,-442.072,0.0001958,2]
[363681027,1748812241278,-201.93286099,0.00019618,2]
[363681029,1748812241287,-209.40437684,0.00019673,2]
[363681031,1748812241297,-185.42,0.00019715,3]
[363681033,1748812241307,-430.0,0.00019725,2]
[363681035,1748812241317,-430.0,0.00019726,2]
[363681038,1748812241327,-512.26,0.00019726,2]
[363681040,1748812241337,-658.01,0.00019726,2]
[363681042,1748812241350,-467.73,0.00019726,2]
[363681044,1748812241359,-595.77,0.00019726,2]
[363681046,1748812241369,-430.0,0.00019726,2]
[363681048,1748812241379,-430.0,0.00019726,2]
[363681050,1748812241390,-217.15233878,0.00019728,2]
[363681052,1748812241399,-225.18697532,0.00019783,2]
[363681054,1748812241409,-1686.77159964,0.00019797,2]
[363681056,1748812241418,-233.51889341,0.00019838,2]
[363681058,1748812241428,-242.15909246,0.00019893,2]
[363681060,1748812241437,-251.11897888,0.00019948,2]
[363681062,1748812241447,-430.0,0.00019999,2]
[363681064,1748812241456,-430.0,0.0002,2]
[363681066,1748812241466,-512.26,0.0002,2]
[363681068,1748812241476,-658.01,0.0002,2]
[363681070,1748812241486,-467.73,0.0002,2]
[363681072,1748812241495,-193.30573625,0.0002,2]
[363681074,1748812241505,-595.77,0.0002,2]
[363681076,1748812241515,-430.0,0.0002,2]
[363681078,1748812241525,-430.0,0.0002,2]
[363681080,1748812241534,-217.06411405,0.00020003,2]
[363681082,1748812241544,-1686.77159964,0.00020038,2]
[363681084,1748812241553,-500.0,0.00020067,2]
[363681086,1748812241563,-2229.01,0.00020174,2]
[363681088,1748812241572,-240.168816,0.00020187,2]
[363681090,1748812241582,-430.0,0.00020273,2]
[363681092,1748812241592,-430.0,0.00020273,2]
[363681094,1748812241601,-512.26,0.00020273,2]
[363681096,1748812241611,-658.01,0.00020273,2]
[363681098,1748812241620,-467.73,0.00020273,2]
[363681100,1748812241629,-595.77,0.00020273,2]
[363681102,1748812241638,-430.0,0.00020273,2]
[363681104,1748812241648,-430.0,0.00020273,2]
[363681106,1748812241658,-1686.77159964,0.00020279,3]
[363681108,1748812241667,-1686.77159964,0.00020521,3]
[363681110,1748812241677,-753.97,0.00020537,3]
[363681112,1748812241686,-848.22,0.00020538,3]
[363681113,1748812241698,-424.1,0.00020538,3]
[363681115,1748812241708,-531.98748848,0.00020547,2]
[363681117,1748812241719,-430.0,0.00020547,2]
[363681119,1748812241728,-512.26,0.00020547,2]
[363681121,1748812241739,-658.01,0.00020547,2]
[363681123,1748812241749,-467.73,0.00020547,2]
[363681125,1748812241759,-595.77,0.00020547,2]
[363681127,1748812241769,-430.0,0.00020547,2]
[363681129,1748812241778,-430.0,0.00020547,2]
[363681131,1748812241788,-287.8,0.000206,2]
[363681133,1748812241798,-823.0,0.00020637,2]
[363681135,1748812241807,-1686.77159964,0.00020762,3]
[363681137,1748812241819,-3162.54,0.00020817,2]
[363681139,1748812241829,-430.0,0.00020821,2]
[363681141,1748812241839,-512.26,0.00020821,2]
[363681143,1748812241849,-658.01,0.00020821,2]
[363681145,1748812241860,-467.73,0.00020821,2]
[363681147,1748812241870,-595.77,0.00020821,2]
[363681149,1748812241881,-430.0,0.00020821,2]
[363681151,1748812241891,-430.0,0.00020821,2]
[363681153,1748812241902,-848.22,0.0002099,3]
[363681155,1748812241914,-1545.27741943,0.00020993,2]
[363681157,1748812241924,-1573.32953,0.00020998,2]
[363681159,1748812241934,-2229.01,0.00020999,2]
[363681160,1748812241944,-3000.0,0.00021,2]
[363681162,1748812241955,-1686.77159964,0.00021003,4]
[363681164,1748812241966,-3000.0,0.0002101,2]
[363681166,1748812241977,-3000.0,0.0002102,2]
[363681168,1748812241987,-376.98,0.0002102,3]
[363681170,1748812241998,-3000.0,0.0002103,2]
[363681172,1748812242009,-3000.0,0.0002104,2]
[363681174,1748812242019,-3000.0,0.0002105,2]
[363681176,1748812242029,-3000.0,0.0002106,2]
[363681178,1748812242039,-160.0,0.00021069,2]
[363681180,1748812242050,-2229.01,0.00021069,2]
[363681182,1748812242063,-3000.0,0.0002107,2]
[363681184,1748812242075,-3000.0,0.0002108,2]
[363681185,1748812242085,-655.1,0.00021083,3]
[363681187,1748812242095,-370.84,0.00021085,3]
[363681189,1748812242106,-3000.0,0.0002109,2]
[363681191,1748812242117,-154.67873888,0.00021093,2]
[363681193,1748812242126,-207.4,0.00021093,2]
[363681195,1748812242136,-272.80097017,0.00021093,2]
[363681197,1748812242146,-300.0,0.00021093,2]
[363681199,1748812242156,-800.0,0.00021093,2]
[363681201,1748812242166,-300.0,0.00021093,2]
[363681203,1748812242176,-800.0,0.00021093,2]
[363681205,1748812242186,-300.0,0.00021093,2]
[363681207,1748812242196,-800.0,0.00021093,2]
[363681209,1748812242208,-300.0,0.00021093,2]
[363681211,1748812242217,-800.0,0.00021093,2]
[363681213,1748812242227,-300.0,0.00021093,2]
[363681215,1748812242237,-800.0,0.00021093,2]
[363681217,1748812242248,-300.0,0.00021093,2]
[363681219,1748812242258,-5000.0,0.00021093,2]
[363681221,1748812242268,-800.0,0.00021093,2]
[363681223,1748812242277,-300.0,0.00021093,2]
[363681225,1748812242287,-800.0,0.00021093,2]
[363681227,1748812242297,-300.0,0.00021093,2]
[363681229,1748812242307,-800.0,0.00021093,2]
[363681231,1748812242319,-300.0,0.00021093,2]
[363681233,1748812242328,-800.0,0.00021093,2]
[363681235,1748812242338,-300.0,0.00021093,2]
[363681237,1748812242348,-800.0,0.00021093,2]
[363681239,1748812242358,-300.0,0.00021093,2]
[363681241,1748812242368,-800.0,0.00021093,2]
[363681243,1748812242378,-300.0,0.00021093,2]
[363681245,1748812242388,-800.0,0.00021093,2]
[363681247,1748812242397,-300.0,0.00021093,2]
[363681249,1748812242407,-800.0,0.00021093,2]
[363681251,1748812242417,-300.0,0.00021093,2]
[363681253,1748812242427,-800.0,0.00021093,2]
[363681255,1748812242437,-300.0,0.00021093,2]
[363681257,1748812242447,-800.0,0.00021093,2]
[363681259,1748812242456,-430.0,0.00021095,2]
[363681261,1748812242466,-512.26,0.00021095,2]
[363681263,1748812242475,-658.01,0.00021095,2]
[363681265,1748812242486,-467.73,0.00021095,2]
[363681267,1748812242495,-595.77,0.00021095,2]
[363681269,1748812242506,-321.75675168,0.00021095,2]
[363681270,1748812242515,-430.0,0.00021095,2]
[363681272,1748812242524,-3000.0,0.000211,2]
[363681274,1748812242534,-485.48,0.000211,2]
[363681276,1748812242544,-3000.0,0.0002111,2]
[363681278,1748812242554,-3000.0,0.0002112,2]
[363681280,1748812242565,-2229.01,0.00021129,2]
[363681282,1748812242575,-3000.0,0.0002113,2]
[363681284,1748812242585,-3000.0,0.0002114,2]
[363681286,1748812242595,-5517.637473,0.0002115,2]
[363681288,1748812242605,-500.0,0.00021163,2]
[363681290,1748812242615,-2352.86,0.000212,2]
[363681292,1748812242625,-1686.77159964,0.00021245,4]
[363681294,1748812242635,-649.21402904,0.000213,2]
[363681296,1748812242646,-320.91,0.00021369,2]
[363681298,1748812242656,-512.26,0.00021369,2]
[363681300,1748812242666,-658.01,0.00021369,2]
[363681302,1748812242677,-467.73,0.00021369,2]
[363681304,1748812242687,-595.77,0.00021369,2]
[363681306,1748812242697,-430.0,0.00021369,2]
[363681308,1748812242710,-1686.77159964,0.00021486,5]
[363681310,1748812242720,-5000.0,0.00021641,2]
[363681312,1748812242730,-512.26,0.00021643,2]
[363681314,1748812242740,-658.01,0.00021643,2]
[363681316,1748812242751,-467.73,0.00021643,2]
[363681318,1748812242760,-595.77,0.00021643,2]
[363681320,1748812242770,-430.0,0.00021643,2]
[363681322,1748812242782,-1545.27741941,0.00021669,2]
[363681324,1748812242791,-1686.77159964,0.00021728,5]
[363681326,1748812242801,-5000.0,0.00021874,2]
[363681328,1748812242812,-287.8,0.000219,2]
[363681330,1748812242822,-1507.94,0.00021907,3]
[363681331,1748812242831,-512.26,0.00021917,2]
[363681333,1748812242841,-658.01,0.00021917,2]
[363681335,1748812242851,-467.73,0.00021917,2]
[363681337,1748812242861,-595.77,0.00021917,2]
[363681339,1748812242871,-150.0,0.00021918,2]
[363681341,1748812242880,-1686.77159964,0.00021969,6]